fUSD/lending_fUSD_20240805
["ID","MTS","AMOUNT","RATE_DAILY","PERIOD"]
[334264619,1722874253419,-1000.0,0.00024869,2]
[334264620,1722874253431,-150.0,0.00024875,15]
[334264621,1722874253440,-23062.20523603,0.00024878,2]
[334264622,1722874253450,-253.15546124,0.00024899,2]
[334264623,1722874253460,-519.81232661,0.00024899,2]
[334264624,1722874253470,-748.2826268,0.00024899,2]
[334264625,1722874253485,-25004.1560878,0.00024899,7]
[334264626,1722874253495,-1000.0,0.000249,2]
[334264627,1722874253504,-3000.0,0.000249,2]
[334264628,1722874253513,-500.0,0.000249,2]
[334264629,1722874253523,-3146.03145564,0.000249,2]
[334264630,1722874253533,-839.89,0.000249,31]
[334264631,1722874253542,-839.89,0.000249,31]
[334264632,1722874253552,-839.89,0.000249,31]
[334264633,1722874253562,-839.89,0.000249,31]
[334264634,1722874253572,-839.89,0.000249,31]
[334264635,1722874253581,-839.89,0.000249,31]
[334264636,1722874253592,-839.89,0.000249,31]
[334264637,1722874253603,-839.89,0.000249,31]
[334264638,1722874253613,-839.89,0.000249,31]
[334264639,1722874253623,-839.89,0.000249,31]
[334264640,1722874253633,-839.89,0.000249,31]
[334264641,1722874253642,-839.89,0.000249,31]
[334264642,1722874253652,-839.89,0.000249,31]
[334264643,1722874253662,-839.89,0.000249,31]
[334264644,1722874253672,-839.89,0.000249,31]
[334264645,1722874253682,-839.89,0.000249,31]
[334264646,1722874253692,-839.89,0.000249,31]
[334264647,1722874253703,-839.89,0.000249,31]
[334264648,1722874253714,-839.89,0.000249,31]
[334264649,1722874253723,-839.89,0.000249,31]
[334264651,1722874253737,-35000.0,0.000249,2]
[334264653,1722874253746,-20477.65509634,0.000249,2]
[334264655,1722874253755,-365.52196528,0.000249,2]
[334264657,1722874253765,-1200.77337706,0.000249,2]
[334264659,1722874253775,-369.96190012,0.000249,2]
[334264661,1722874253785,-959.8543413,0.000249,2]
[334264662,1722874253794,-150.0,0.00024959,2]
[334264663,1722874253804,-367.64405093,0.00024979,2]
[334264664,1722874253814,-367.64405093,0.00024979,2]
[334264665,1722874253825,-722.96983282,0.00024979,2]
[334264666,1722874253835,-380.01075921,0.00024979,2]
[334264667,1722874253846,-155.0,0.00024979,2]
[334264668,1722874253856,-155.0,0.00024979,2]
[334264669,1722874253866,-3117.42145345,0.00024979,2]
[334264670,1722874253876,-155.0,0.00024979,2]
[334264671,1722874253886,-500.72591955,0.00024979,2]
[334264672,1722874253896,-170.4090188,0.00024979,2]
[334264674,1722874253906,-600.38361179,0.00024989,2]
[334264676,1722874253916,-164.28139414,0.00024989,2]
[334264678,1722874253927,-155.0,0.00024989,2]
[334264680,1722874253938,-1176.15950994,0.00024989,2]
[334264682,1722874253948,-155.0,0.00024989,2]
[334264684,1722874253958,-151.11,0.0002499,2]
[334264686,1722874253967,-198.38,0.00024995,5]
[334264688,1722874253982,-206.37089204,0.00024996,2]
[334264690,1722874253993,-330.00668886,0.00024996,2]
[334264692,1722874254003,-594.69883351,0.00024996,7]
[334264694,1722874254018,-531.93797373,0.00024996,2]
[334264696,1722874254029,-449.90785038,0.00024996,2]
[334264698,1722874254040,-484.89111714,0.00024996,2]
[334264700,1722874254050,-7023.4888112,0.00024997,2]
[334264702,1722874254060,-1000.0,0.00024999,2]
[334264704,1722874254070,-1421.46211389,0.00024999,2]
[334264706,1722874254079,-211.85566963,0.00024999,2]
[334264709,1722874254089,-218.77944705,0.00024999,2]
[334264711,1722874254099,-302.01785202,0.00024999,2]
[334264713,1722874254109,-165.40738318,0.00024999,2]
[334264715,1722874254119,-1771.7583285,0.00025,2]
[334264717,1722874254128,-850049.78448665,0.00025,11]
[334264719,1722874254138,-17304028.65181782,0.00025,2]
[334264931,1722874256360,-10947.3364,0.00025,2]
[334264934,1722874256375,-4607.26195242,0.00025,2]
[334264936,1722874256388,-313.19404509,0.00025,2]
[334264939,1722874256405,-13644.735,0.00025,2]
[334264941,1722874256416,-11199.67287327,0.00025,2]
[334264943,1722874256428,-403.10790375,0.00025,2]
[334264945,1722874256440,-110931.50000003,0.00025,2]
[334264947,1722874256452,-303179.08167812,0.00025,2]
[334264949,1722874256464,-990.38894549,0.00025,2]
[334264951,1722874256480,-366.33656683,0.00025,2]
[334264954,1722874256500,-1325.20799028,0.00025,2]
[334264995,1722874256901,-3805.52041802,0.00017442,2]
[334264997,1722874256911,-187.80479493,0.00017442,2]
[334264999,1722874256921,-3977.2935375,0.00023451,2]
[334265001,1722874256931,-601.27830623,0.00023873,2]
[334265003,1722874256942,-1564.47600514,0.00023873,2]
[334265005,1722874256955,-559.8399,0.00023873,2]
[334265007,1722874256967,-731.7833865,0.00023873,2]
[334265009,1722874256978,-675.96010721,0.00024996,2]
[334265011,1722874256995,-281.83368498,0.00025,2]
[334265015,1722874257015,-432.27653367,0.00013398,2]
[334265017,1722874257027,-358.54738649,0.00013398,2]
[334265019,1722874257038,-617.69918078,0.00013398,2]
[334265022,1722874257061,-5008.71094303,0.00013398,2]
[334265025,1722874257072,-808.40290683,0.00013398,2]
[334265027,1722874257084,-2036.11422069,0.00013398,2]
[334265029,1722874257096,-1266.23904195,0.00013398,2]
[334265031,1722874257106,-374.16095805,0.00024989,7]
[334265033,1722874257117,-220.53787546,0.00024989,7]
[334265035,1722874257127,-701.72481743,0.00025,2]
[334265037,1722874257139,-2318.42279138,0.00025,2]
[334265039,1722874257151,-776.31930374,0.00025,2]
[334265040,1722874257162,-1278.44042038,0.00025,2]
[334265042,1722874257173,-422.24066894,0.00025,2]
[334265045,1722874257206,-7.61169614,0.00025,2]
[334265047,1722874257221,-885.00597813,0.00025,2]
[334265349,1722874402694,550.0,0.00011,2]
[334265350,1722874413268,171378.0,0.00025,60]
[334265351,1722874541102,773.78681465,0.00011,10]
[334265352,1722874583795,227.63850404,0.00011,2]
[334265353,1722874588841,555.0,0.00011,2]
[334265354,1722874590034,373.35179796,0.00011,2]
[334265355,1722874597601,412.66330622,0.00011,2]
[334265356,1722874603198,1130.32097751,0.00011,2]
[334265357,1722874958508,500.0,0.00025,60]
[334265358,1722874973204,500.0,0.00025,60]
[334265359,1722874983458,500.0,0.00025,60]
[334265360,1722874994342,10000.0,0.00025,60]
[334265361,1722874996054,500.0,0.00025,60]
[334265362,1722875011395,388.07,0.00025,60]
[334265363,1722875032656,273.88471003,0.00018,120]
[334265364,1722875108221,1018818.22340829,0.00011,2]
[334265367,1722875215778,150.0,0.00025,60]
[334265436,1722875287728,237.5655646,0.00025,120]
[334265576,1722875432428,-300.0,9.999e-05,2]
[334265577,1722875432438,-244.0998858,0.0001,2]
[334265578,1722875432464,-533.92040024,0.0001,2]
[334265579,1722875432475,-753.7329,0.0001,2]
[334265580,1722875432531,-2595.45439401,0.0001,2]
[334265581,1722875432543,-280.4694,0.0001,2]
[334265582,1722875432596,-554.02083,0.0001,2]
[334265594,1722875438562,-256.06653528,0.0001,2]
[334265595,1722875438575,-1087.84956495,0.0001,2]
[334265596,1722875438585,-244.791946,0.000101,2]
[334265597,1722875438594,-180.14467948,0.000109,2]
[334265598,1722875438604,-1664.160593,0.00010941,2]
[334265599,1722875438614,-13767.73952048,0.00010941,2]
[334265600,1722875438624,-179.02196659,0.00010997,2]
[334265601,1722875438634,-1304.84896795,0.00010999,2]
[334265602,1722875438643,-150.0,0.00010999,2]
[334265603,1722875438653,-360.0,0.00010999,2]
[334265604,1722875438663,-325.61869213,0.00010999,2]
[334265605,1722875438672,-36037.96308066,0.00011,2]
[334265607,1722875439831,-746.07072792,0.00011,2]
[334265608,1722875439844,-420.68447377,0.00011,2]
[334265609,1722875439861,-609.68908,0.00011,2]
[334265964,1722875443490,-2488.0179701,0.00011,2]
[334265967,1722875443516,-727.40483639,0.00011,2]
[334265969,1722875443527,-1383.80781792,0.00011,2]
[334265971,1722875443538,-18159.9217488,0.00011,2]
[334265973,1722875443550,-49617.89999999,0.00011,2]
[334265978,1722875443588,-303179.08167812,0.00011,2]
[334265980,1722875443600,-44646.80772891,0.00011,2]
[334265983,1722875443611,-11013.60259999,0.00011,2]
[334266079,1722875444534,-4754.60243393,0.00011,2]
[334266081,1722875444546,-5523.42262638,0.00011,2]
[334266084,1722875444557,-632.93440001,0.00011,2]
[334266311,1722875446776,-2326.28164979,0.00011,2]
[334266317,1722875446828,-1658.0746,0.00011,2]
[334266328,1722875446921,-2497.12171828,0.00011,2]
[334266340,1722875447029,-8329.95,0.00011,2]
[334267404,1722875574139,152.8,0.00024816,120]
[334267570,1722876631545,-1445.77865243,0.00010545,2]
[334267575,1722876631603,-710.59577829,0.00010545,2]
[334267576,1722876631615,-377.86782155,0.00010545,2]
[334267577,1722876631661,-4566.45011595,0.00010545,2]
[334267578,1722876631670,-987.6533,0.00010645,2]
[334267579,1722876631679,-2000.0,0.00010745,2]
[334267580,1722876631689,-17317.0375,0.000109,2]
[334267581,1722876631698,-335.4322,0.000109,2]
[334267582,1722876631712,-3110.48937871,0.00010999,2]
[334267583,1722876631722,-165.38895109,0.00010999,2]
[334267584,1722876631731,-21004.9979073,0.00011,2]
[334267585,1722876631742,-2358.18069036,0.00011,2]
[334267586,1722876631754,-16853.73201743,0.00011,2]
[334267587,1722876631764,-1042.5,0.00011,2]
[334267588,1722876631775,-482.99531256,0.00011,2]
[334267591,1722876631795,-3347.07412977,0.00011,2]
[334267593,1722876631806,-790.388765,0.00011,2]
[334267595,1722876631817,-488.29864495,0.00011,2]
[334267618,1722876637503,-2207.56195178,0.00011,2]
[334267619,1722876637515,-294.2500075,0.00011,2]
[334267623,1722876637568,-322.82250005,0.00011,2]
[334267626,1722876637685,-13003.8,0.00011,2]
[334267627,1722876637697,-1710.00000005,0.00011,2]
[334267628,1722876637745,-12325.97233372,0.00011,2]
[334267629,1722876637757,-53017.28786324,0.00011,2]
[334267630,1722876637812,-9005.59263688,0.00011,2]
[334267640,1722876639892,-2439.14814662,0.00011,2]
[334267641,1722876639906,-1618.95713539,0.00011,2]
[334267642,1722876639919,-6087.8,0.00011,2]
[334267643,1722876639932,-498.86120004,0.00011,2]
[334267644,1722876639943,-3162.20000006,0.00011,2]
[334267645,1722876639955,-1479.82326203,0.00011,2]
[334267646,1722876639967,-3049.54626485,0.00011,2]
[334267647,1722876639978,-348.33,0.00011,2]
[334267648,1722876639990,-552.33090042,0.00011,2]
[334267649,1722876640001,-369.0,0.00011,2]
[334267651,1722876640013,-356.19588052,0.00011,2]
[334267653,1722876640024,-300.0,0.00011,2]
[334267655,1722876640036,-2256.33146258,0.00011,2]
[334267657,1722876640047,-564.37000001,0.00011,2]
[334267673,1722876640188,-667.4499999,0.00011,2]
[334267675,1722876640200,-1427.486,0.00011,2]
[334267679,1722876640226,-593.37763311,0.00011,2]
[334267916,1722876642733,-722.338587,0.00010485,2]
[334267919,1722876642749,-2436.27030469,0.00011,2]
[334267968,1722876643127,-1668.02297108,0.00011,2]
[334267969,1722876643150,-9320.38997933,0.00011,2]
[334267970,1722876643166,-1913.60066779,0.00011,2]
[334267971,1722876643182,-298.975,0.00011,2]
[334267973,1722876643194,-579.35,0.00011,2]
[334267975,1722876643205,-3121.458592,0.00011,2]
[334267977,1722876643216,-7164.35167377,0.00011,2]
[334268115,1722876644538,-7579.64117648,0.00011,2]
[334268125,1722876644627,-12080.78728353,0.00011,2]
[334268127,1722876644639,-41247.07508805,0.00011,2]
[334268130,1722876644650,-260.27846756,0.00011,2]
[334268261,1722876645841,-8615.38027144,0.00011,2]
[334268264,1722876645854,-1325.98466,0.00011,2]
[334268266,1722876645866,-18827.76902264,0.00011,2]
[334268268,1722876645877,-1348.24207892,0.00011,2]
[334268277,1722876645951,-2800.21661438,0.00011,2]
[334268279,1722876645962,-12115.36860853,0.00011,2]
[334268288,1722876646029,-11182.99173202,0.00011,2]
[334268290,1722876646043,-332.78,0.00011,2]
[334268292,1722876646054,-78819.00531107,0.00011,2]
[334268294,1722876646065,-508.5,0.00011,2]
[334268297,1722876646080,-1246.58900404,0.00011,2]
[334268299,1722876646093,-885.78247507,0.00011,2]
[334268302,1722876646120,-42205.49005454,0.00011,2]
[334268304,1722876646131,-2609.99752265,0.00011,2]
[334268306,1722876646144,-263.81353985,0.00011,2]
[334268312,1722876646188,-623.72779138,0.00011,2]
[334268478,1722877428139,2000.0,0.00025,60]
[334268592,1722877826697,-740.04118843,0.00010654,2]
[334268593,1722877826722,-400.0,0.000107,3]
[334268594,1722877826744,-586.0,0.00010754,2]
[334268595,1722877826768,-800.0,0.000108,3]
[334268596,1722877826790,-1136.2729,0.000109,2]
[334268597,1722877826813,-1498.26,0.000109,2]
[334268598,1722877826840,-305.5266,0.000109,2]
[334268599,1722877826863,-14533.89931157,0.000109,2]
[334268600,1722877827592,-6665.78068843,0.000109,2]
[334268601,1722877827617,-1416.6197,0.000109,2]
[334268602,1722877827640,-8089.2466,0.000109,2]
[334268603,1722877827664,-1000.0,0.000109,2]
[334268604,1722877827688,-2828.35301157,0.000109,2]
[334268640,1722877831813,-1014.39399226,0.000109,2]
[334268641,1722877831829,-498.6429475,0.000109,2]
[334268642,1722877831841,-1026.39824093,0.000109,2]
[334268643,1722877831907,-543.93069,0.000109,2]
[334268644,1722877832046,-457.29170079,0.000109,2]
[334268665,1722877837820,-2587.29321695,0.000109,2]
[334268666,1722877837830,-1200.0,0.000109,3]
[334268667,1722877837841,-472.85749571,0.000109,2]
[334268668,1722877837853,-527.14250429,0.000109,2]
[334268669,1722877837863,-26.01749571,0.000109,2]
[334268670,1722877837875,-2473.98250429,0.000109,2]
[334268671,1722877837885,-51526.01749569,0.00011,2]
[334268672,1722877838144,-408.66224937,0.00011,2]
[334268673,1722877838156,-2256.08237983,0.00011,2]
[334268674,1722877838180,-426.13012571,0.00011,2]
[334268675,1722877838191,-16333.61967483,0.00011,2]
[334268676,1722877838203,-812.55155839,0.00011,2]
[334268677,1722877838218,-16284.51120001,0.00011,2]
[334268678,1722877838229,-20638.83705556,0.00011,2]
[334268679,1722877838240,-414.53245145,0.00011,2]
[334268680,1722877838251,-37035.55726518,0.00011,2]
[334268681,1722877838263,-298.95882361,0.00011,2]
[334268682,1722877838274,-796.44791203,0.00011,2]
[334268683,1722877838285,-31090.0,0.00011,2]
[334268723,1722877839804,-300.0495264,0.00011,2]
[334268966,1722877842274,-658.89701571,0.00011,2]
[334268968,1722877842286,-69948.82056898,0.00011,2]
[334268971,1722877842298,-347.55568211,0.00011,2]
[334268998,1722877842573,-268.76496837,0.00011,2]
[334269050,1722877842888,-366.99343287,0.00011,2]
[334269055,1722877842899,-4783.16,0.00011,2]
[334269058,1722877842912,-516.042828,0.00011,2]
[334269061,1722877842928,-1067.81353758,0.00011,2]
[334269063,1722877842939,-455.24917089,0.00011,2]
[334269065,1722877842950,-500.0,0.00011,2]
[334269067,1722877842960,-3529.11975385,0.00011,2]
[334269070,1722877842972,-3397.76989014,0.00011,2]
[334269072,1722877842984,-1269.05719409,0.00011,2]
[334269074,1722877842995,-2498.31440764,0.00011,2]
[334269076,1722877843006,-3162.19953279,0.00011,2]
[334269078,1722877843018,-1795.66259684,0.00011,2]
[334269081,1722877843029,-1031.497246,0.00011,2]
[334269167,1722877844084,-1161.7306083,0.00011,2]
[334269169,1722877844095,-3642.79917391,0.00011,2]
[334269172,1722877844106,-6020.00259753,0.00011,2]
[334269174,1722877844118,-723.49542968,0.00011,2]
[334269176,1722877844129,-2971.4261541,0.00011,2]
[334269178,1722877844140,-350.62,0.00011,2]
[334269180,1722877844151,-2448.6,0.00011,2]
[334269183,1722877844177,-1152.56793449,0.00011,2]
[334269185,1722877844189,-36597.54571064,0.00011,2]
[334269187,1722877844200,-19826.037421,0.00011,2]
[334269190,1722877844211,-24800.007759,0.00011,2]
[334269192,1722877844222,-54452.30290792,0.00011,2]
[334269421,1722877846828,-360.08234564,0.00011,2]
[334269424,1722877846841,-264.37005527,0.00011,2]
[334269426,1722877846853,-545.94094677,0.00011,2]
[334269428,1722877846866,-668085.44801505,0.00011,2]
[334269435,1722877846928,-2136.19702433,0.00011,2]
[334269437,1722877846940,-1131.90187909,0.00011,2]
[334269440,1722877846952,-555.0,0.00011,2]
[334269447,1722877847011,-1583.93695145,0.00011,2]
[334269449,1722877847024,-581.02513369,0.00011,2]
[334269451,1722877847035,-300.025825,0.00011,2]
[334269453,1722877847047,-19733.16388008,0.00011,2]
[334269462,1722877847119,-904.64662748,0.00011,2]
[334269464,1722877847131,-968.49131176,0.00011,2]
[334269466,1722877847143,-1891.29763656,0.00011,2]
[334269468,1722877847154,-877168.90858305,0.00011,2]
[334269475,1722877847214,-389.71569304,0.00011,2]
[334269477,1722877847226,-914.18041574,0.00011,2]
[334270762,1722878000974,324.257532,0.00025,120]
[334270763,1722878160342,2000.0,0.000244,60]
[334270764,1722878234429,-22190.0,0.000109,2]
[334270880,1722879033054,-200.0,0.000107,3]
[334270881,1722879033065,-2000.0,0.000107,2]
[334270882,1722879033075,-423.11071755,0.000108,2]
[334270883,1722879033084,-142.74829662,0.000108,3]
[334270884,1722879033223,-0.37062384,0.000108,3]
[334270885,1722879033235,-356.88107954,0.000108,3]
[334270886,1722879033245,-74.85927997,0.000109,2]
[334270887,1722879033256,-529.24457597,0.000109,2]
[334270888,1722879033268,-376.37542403,0.000109,2]
[334270899,1722879038085,-3047.04582003,0.000109,2]
[334270900,1722879038096,-334.0518,0.000109,2]
[334270901,1722879038105,-3522.0891966,0.000109,2]
[334270916,1722879039830,-1185.34288774,0.000109,2]
[334270919,1722879039843,-283.83287331,0.000109,2]
[334270938,1722879040078,-50776.37639185,0.000109,2]
[334270939,1722879040088,-364.72077219,0.000109,2]
[334270941,1722879040099,-1267.89314635,0.000109,2]
[334270942,1722879040110,-7572.79673936,0.000109,2]
[334270943,1722879040120,-308.49156198,0.000109,2]
[334270944,1722879040130,-1846.85248153,0.000109,2]
[334270945,1722879040141,-1000.0,0.000109,2]
[334270947,1722879040152,-800.0,0.000109,3]
[334270948,1722879040162,-2500.0,0.000109,2]
[334270949,1722879040172,-2663.53502068,0.00010999,2]
[334270951,1722879040182,-343.70535026,0.00010999,2]
[334270952,1722879040192,-67984.9598107,0.00011,2]
[334270953,1722879040209,-100563.72190259,0.00011,2]
[334270955,1722879040220,-1056.7785687,0.00011,2]
[334270956,1722879040232,-1273.216,0.00011,2]
[334270957,1722879040244,-14625.01862339,0.00011,2]
[334270959,1722879040255,-1130.20968483,0.00011,2]
[334270960,1722879040267,-3142.91921805,0.00011,2]
[334270961,1722879040278,-4568.12145839,0.00011,2]
[334270962,1722879040290,-1644.2545854,0.00011,2]
[334270965,1722879040342,-27486.65833228,0.00011,2]
[334270967,1722879040353,-5471.7,0.00011,2]
[334270970,1722879040445,-382.60523184,0.00011,2]
[334271308,1722879044389,-5462.33836078,0.00011,2]
[334271310,1722879044400,-275.452,0.00011,2]
[334271312,1722879044412,-758.19771398,0.00011,2]
[334271315,1722879044426,-31293.8281909,0.00011,2]
[334271317,1722879044436,-140.4218091,0.00011,2]
[334271319,1722879044448,-109.5781909,0.00011,2]
[334271321,1722879044457,-27249.42180909,0.00011,2]
[334271340,1722879045081,-1451.7710086,0.00011,2]
[334271341,1722879045093,-4045.835814,0.00011,2]
[334271342,1722879045105,-3146.60607242,0.00011,2]
[334271343,1722879045117,-21984.72422191,0.00011,2]
[334271344,1722879045139,-2914.6287798,0.00011,2]
[334271345,1722879045151,-298.72,0.00011,2]
[334271346,1722879045162,-1662.404714,0.00011,2]
[334271347,1722879045173,-530.44351033,0.00011,2]
[334271348,1722879045183,-361871.6202388,0.00011,2]
[334271349,1722879045194,-500.0,0.00011,2]
[334271350,1722879045205,-2829.58704795,0.00011,2]
[334271352,1722879046227,-7094.54467962,0.00011,2]
[334271353,1722879046330,-1325.87645245,0.00011,2]
[334271354,1722879046343,-1026.0,0.00011,2]
[334271355,1722879046424,-1549.39999999,0.00011,2]
[334271356,1722879046436,-1555.39303267,0.00011,2]
[334271357,1722879046598,-5788.61873118,0.00011,2]
[334271399,1722879606809,1500.0,0.00025,60]
[334271401,1722879974263,-691.05229577,0.00015,10]
[334271402,1722879974291,-308.94770423,0.00015,10]
[334271403,1722880014258,-1084.0,0.00015,10]
[334271521,1722880232265,-396.48017172,0.0001,2]
[334271522,1722880232276,-791.05118797,0.0001,2]
[334271523,1722880232313,-3106.0090687,0.0001,2]
[334271524,1722880232368,-706.45957161,0.0001,2]
[334271525,1722880232385,-392.11,0.00010629,2]
[334271526,1722880232397,-153.93183386,0.000109,2]
[334271527,1722880232407,-1224.79859453,0.000109,2]
[334271528,1722880232421,-1275.20140547,0.000109,2]
[334271529,1722880232432,-216.04173555,0.000109,2]
[334271531,1722880232532,-132.12317067,0.000109,2]
[334271532,1722880232542,-236.13645283,0.000109,2]
[334271533,1722880232552,-190.75301146,0.00010905,2]
[334271534,1722880232562,-500.0,0.00010912,2]
[334271535,1722880232571,-150.0,0.00010932,2]
[334271536,1722880232581,-1638.70455054,0.00010999,2]
[334271537,1722880232590,-758.59968379,0.00010999,2]
[334271538,1722880232600,-538.37034483,0.00011,2]
[334271539,1722880232611,-6489.9684291,0.00011,2]
[334271540,1722880232622,-2204.70442374,0.00011,2]
[334271541,1722880232633,-356.40455333,0.00011,2]
[334271556,1722880238579,-522.87689315,0.00011,2]
[334271558,1722880238592,-3531.15950589,0.00011,2]
[334271561,1722880238604,-3791.46814228,0.00011,2]
[334271566,1722880238650,-1169.55400002,0.00010997,2]
[334271634,1722880240289,-1130.32059321,0.00010997,2]
[334271636,1722880240302,-1034.355,0.00010997,2]
[334271638,1722880240315,-2198.49212684,0.00010997,2]
[334271644,1722880240358,-6602.23217164,0.00010997,2]
[334271646,1722880240368,-12025.92103934,0.00011,2]
[334271648,1722880240381,-136878.95768196,0.00011,2]
[334271669,1722880240575,-1685.4887346,0.00011,2]
[334271676,1722880240640,-470.73536654,0.00011,2]
[334271983,1722880243993,-2736.46004353,0.00011,2]
[334271986,1722880244005,-138070.98139999,0.00011,2]
[334271988,1722880244016,-712.04599,0.00011,2]
[334271991,1722880244037,-358.288175,0.00011,2]
[334271993,1722880244048,-493.57394576,0.00011,2]
[334271995,1722880244059,-774.40549634,0.00011,2]
[334271998,1722880244074,-10303.64793426,0.00011,2]
[334272001,1722880244089,-7294.96880747,0.00011,2]
[334272003,1722880244100,-5736.28546255,0.00011,2]
[334272250,1722880246630,-10946.430504,0.00011,2]
[334272252,1722880246641,-6056.99980421,0.00011,2]
[334272259,1722880246700,-5256.37160202,0.00011,2]
[334272808,1722880399970,-2700.0,0.000106,3]
[334272809,1722880399994,-5400.0,0.000107,3]
[334272810,1722880400018,-300.0,0.00010799,2]
[334272811,1722880400042,-8100.0,0.000108,3]
[334272812,1722880400065,-1509.0,0.00010845,2]
[334272813,1722880400088,-1879.4487,0.000109,2]
[334272814,1722880400112,-111.5513,0.000109,3]
[334272815,1722880400981,-10788.4487,0.000109,3]
[334272816,1722880401004,-166.44820133,0.000109,2]
[334272817,1722880401027,-333.52,0.00010959,2]
[334272818,1722880401048,-160.95450733,0.00010997,2]
[334272819,1722880401070,-207.7720022,0.00010999,2]
[334272820,1722880401092,-643.3827527,0.00010999,2]
[334272821,1722880401118,-7699.47383644,0.00011,2]
[334272822,1722880401497,-20000.0,0.00011,2]
[334272823,1722880401878,-20000.0,0.00011,2]
[334272824,1722880403385,-20000.0,0.00011,2]
[334272825,1722880416363,-624.87104836,0.000109,2]
[334272826,1722880416387,-1000.0,0.000109,2]
[334272827,1722880416409,-500.0,0.00010912,2]
[334272828,1722880416440,-17875.12895164,0.00011,2]
[334272829,1722880417080,-20000.0,0.00011,2]
[334272830,1722880419934,-20000.0,0.00011,2]
[334272831,1722880420617,-20000.0,0.00011,2]
[334272832,1722880957293,640.42,0.00025,60]
[334272833,1722880997969,-592.68,9.901e-05,2]
[334272834,1722881056962,155.0,9.901e-05,2]
[334272835,1722881058613,425.56217622,9.901e-05,2]
[334272836,1722881058654,7575.17855654,9.901e-05,2]
[334272837,1722881058709,1224.01184071,9.901e-05,2]
[334272838,1722881065208,27.56742653,9.901e-05,2]
[334272839,1722881065231,763.11761107,9.901e-05,2]
[334272840,1722881067464,220.12459623,9.901e-05,2]
[334272841,1722881070160,1633.46873973,9.901e-05,2]
[334272842,1722881077690,155.2039469,9.901e-05,2]
[334272843,1722881082231,3069.19453458,9.901e-05,2]
[334272844,1722881082263,692.66620014,9.901e-05,2]
[334272845,1722881082981,155.0,9.901e-05,2]
[334272846,1722881083008,871.55601316,9.901e-05,2]
[334272847,1722881083652,485.39693971,9.901e-05,2]
[334272848,1722881084899,1954.27141848,9.901e-05,2]
[334272854,1722881308250,150.0,0.00025,60]
[334273042,1722881432429,-603.41,9.762e-05,2]
[334273044,1722881432438,-150.0,9.9e-05,2]
[334273046,1722881432448,-654.49,0.00010462,2]
[334273048,1722881432458,-250.0,0.00010485,2]
[334273050,1722881432468,-179.3,0.00010508,2]
[334273052,1722881432478,-1300.0,0.000107,3]
[334273054,1722881432488,-2700.0,0.000108,3]
[334273056,1722881432497,-300.0,0.00010899,2]
[334273058,1722881432507,-153.93183382,0.000109,2]
[334273059,1722881432516,-955.7269,0.000109,2]
[334273060,1722881432526,-4191.56784462,0.000109,2]
[334273061,1722881432537,-576.41012845,0.000109,2]
[334273062,1722881432548,-5730.77732693,0.000109,2]
[334273063,1722881432558,-4100.0,0.000109,3]
[334273064,1722881432567,-190.75301146,0.000109,2]
[334273065,1722881432577,-416.5806989,0.000109,2]
[334273066,1722881432587,-161.98452795,0.000109,2]
[334273067,1722881432596,-236.13645283,0.000109,2]
[334273068,1722881432606,-500.0,0.00010912,2]
[334273069,1722881432616,-150.99,0.00010912,2]
[334273070,1722881432625,-586.84,0.00010945,2]
[334273071,1722881432635,-150.99,0.00010945,2]
[334273072,1722881432644,-299.99,0.00010945,2]
[334273073,1722881432653,-499.99,0.00010945,2]
[334273074,1722881432665,-250.0,0.00010959,2]
[334273075,1722881432678,-151.5,0.0001099,2]